bitfinex/quotes_SOLUSD_20250903
["timestamp","ask_amount","ask_price","bid_price","bid_amount"]
[1756860968789,0.06,208.57,208.55,10.68864658]
[1756860968960,0.06,208.57,208.56,4.79478327]
[1756860969467,11.02864658,208.57,208.51,79.7]
[1756860969674,11.02864658,208.57,208.53,38.94]
[1756860969675,10.26864658,208.55,208.53,38.94]
[1756860969886,0.7,208.54,208.53,38.94]
[1756860970684,10.26864658,208.55,208.53,38.94]
[1756860970886,0.7,208.55,208.53,38.94]
[1756860971087,10.96864658,208.54,208.48,10.26864658]
[1756860971390,10.26864658,208.51,208.48,38.94]
[1756860971684,10.26864658,208.49,208.45,38.94]
[1756860971886,10.92864658,208.48,208.45,38.94]
[1756860973589,0.66,208.48,208.45,38.94]
[1756860974170,10.92864658,208.48,208.45,38.94]
[1756860974372,10.92864658,208.47,208.45,38.94]
[1756860975292,10.26864658,208.48,208.45,38.94]
[1756860975485,10.92864658,208.48,208.45,38.94]
[1756860975793,10.26864658,208.48,208.45,118.64]
[1756860975999,10.26864658,208.49,208.45,123.43729026]
[1756860976168,10.92864658,208.49,208.45,123.43729026]
[1756860977594,33.69869549,208.49,208.45,123.43729026]
[1756860977903,7.03869549,208.48,208.45,123.43729026]
[1756860978600,0.66,208.47,208.45,118.64]
[1756860979174,7.03869549,208.48,208.45,118.64]
[1756860979395,7.69869549,208.48,208.45,118.64]
[1756860983508,3.31488282,208.48,208.45,118.64]
[1756860983996,2.65488282,208.48,208.45,118.64]
[1756860985685,2.65488282,208.47,208.45,118.64]
[1756860986599,2.65488282,208.47,208.45,118.67]
[1756860987907,2.65488282,208.47,208.45,79.73]
[1756860988105,3.31488282,208.46,208.45,79.73]
[1756860988623,8.11196619,208.46,208.45,79.73]
[1756860988782,8.11196619,208.46,208.45,0.03]
[1756860990311,8.5384509,208.46,208.45,0.03]
[1756860990605,19.15798218,208.46,208.45,0.03]
[1756860992895,8.11196619,208.46,208.45,0.03]
[1756860993603,2.65488282,208.46,208.45,0.03]
[1756860994190,3.31488282,208.46,208.45,0.03]
[1756860995097,34.11196619,208.46,208.45,0.03]
[1756860995501,29.31488282,208.46,208.45,0.03]
[1756860996086,26.0,208.46,208.45,0.03]
[1756860996289,28.65488282,208.46,208.45,0.03]
[1756860996612,29.31488282,208.46,208.45,0.03]
[1756860997684,8.11196619,208.46,208.45,0.03]
[1756860997887,18.73149747,208.46,208.45,0.03]
[1756860998296,8.11196619,208.46,208.45,0.03]
[1756860999791,18.73149747,208.46,208.45,0.03]
[1756861000302,45.15798218,208.46,208.45,0.03]
[1756861000611,26.0,208.43,208.42,0.03]
[1756861000812,28.65488282,208.43,208.42,0.03]
[1756861001113,29.31488282,208.43,208.42,0.03]
[1756861001295,28.65488282,208.43,208.42,0.03]
[1756861001618,26.69,208.43,208.42,0.03]
[1756861001818,29.34488282,208.43,208.42,0.03]
[1756861002411,34.14265665,208.43,208.42,0.03]
[1756861003785,36.0657798,208.43,208.42,0.03]
[1756861006620,1.92312315,208.43,208.42,0.03]
[1756861006912,34.14265665,208.43,208.42,0.03]
[1756861008826,29.34488282,208.43,208.42,0.03]
[1756861012017,28.65488282,208.43,208.42,0.03]
[1756861015699,1.92293824,208.46,208.42,0.03]
[1756861015897,0.69,208.5,208.42,0.45]
[1756861016120,5.51869475,208.53,208.44,2.65488282]
[1756861016419,2.65488282,208.5,208.45,0.42]
[1756861016823,15.10579972,208.56,208.45,3.07488282]
[1756861017010,2.65488282,208.52,208.46,3.07488282]
[1756861017207,2.65488282,208.52,208.47,0.42]
[1756861017514,10.61953128,208.56,208.43,79.7]
[1756861017723,2.65488282,208.46,208.44,0.42]
[1756861018034,2.65488282,208.47,208.44,5.21735869]
[1756861018413,2.65488282,208.48,208.44,4.79735869]
[1756861018707,2.65488282,208.47,208.45,0.42]
[1756861018909,2.65488282,208.48,208.45,0.42]
[1756861019716,2.65488282,208.47,208.45,0.42]
[1756861019916,26.69,208.51,208.46,4.79708337]
[1756861020122,2.65488282,208.48,208.46,4.79708337]
[1756861020320,26.0,208.52,208.42,38.43]
[1756861020321,2.65488282,208.47,208.42,38.43]
[1756861020635,2.65488282,208.43,208.42,4.82798292]
[1756861021531,2.65488282,208.43,208.42,0.03]
[1756861021738,2.65488282,208.44,208.42,0.03]
[1756861022147,2.65488282,208.45,208.42,0.45]
[1756861022947,2.65488282,208.5,208.44,2.65488282]
[1756861023241,2.65488282,208.5,208.45,38.8]
[1756861023451,2.65488282,208.49,208.45,38.8]
[1756861023748,0.06,208.48,208.46,4.79708337]
[1756861023921,2.71488282,208.48,208.46,4.79708337]
[1756861024115,2.71488282,208.48,208.45,43.17730005]
[1756861025330,2.71488282,208.48,208.45,43.59730005]
[1756861025331,0.06,208.48,208.45,43.59730005]
[1756861025508,0.06,208.48,208.46,0.42]
[1756861025706,0.06,208.48,208.47,4.79685326]
[1756861026137,0.06,208.48,208.47,84.49685326]
[1756861026823,0.06,208.48,208.47,79.7]
[1756861027022,2.71488282,208.48,208.47,79.7]
[1756861027830,3.40488282,208.48,208.47,79.7]
[1756861028233,2.71488282,208.48,208.47,79.7]
[1756861028549,2.71488282,208.48,208.47,84.49685326]
[1756861029024,2.71488282,208.48,208.47,79.7]
[1756861029234,3.40488282,208.48,208.47,79.7]
[1756861029432,3.40488282,208.48,208.42,122.88793702]
[1756861029730,2.65488282,208.43,208.42,43.18793702]
[1756861030545,0.69,208.46,208.42,43.18793702]
[1756861030744,2.65488282,208.44,208.42,43.18793702]
[1756861031948,0.75,208.48,208.42,43.18793702]
[1756861032147,2.65488282,208.47,208.43,0.42]
[1756861032537,2.65488282,208.47,208.44,4.79754365]
[1756861032739,2.65488282,208.47,208.45,38.36]
[1756861032933,2.71488282,208.48,208.45,38.36]
[1756861033142,0.06,208.48,208.45,38.36]
[1756861034134,2.65488282,208.46,208.45,38.36]
[1756861034341,3.34488282,208.46,208.43,43.15775336]
[1756861034542,2.65488282,208.44,208.43,43.15775336]
[1756861035056,2.65488282,208.44,208.43,38.36]
[1756861035754,3.34488282,208.44,208.43,38.36]
[1756861035946,2.65488282,208.44,208.43,38.36]
[1756861036644,2.65488282,208.44,208.43,43.15777383]
[1756861037548,4.14997912,208.44,208.43,43.15777383]
[1756861037956,4.14997912,208.46,208.43,122.85777383]
[1756861038142,30.20997912,208.48,208.44,0.42]
[1756861038345,0.06,208.48,208.45,38.36]
[1756861039165,4.20997912,208.48,208.46,4.79708337]
[1756861039347,4.20997912,208.48,208.45,38.36]
[1756861039951,4.20997912,208.48,208.45,43.15724986]
[1756861040760,0.06,208.48,208.46,0.42]
[1756861040959,0.06,208.48,208.47,43.15685326]
[1756861042842,4.89997912,208.48,208.47,38.36]
[1756861043250,4.20997912,208.48,208.47,38.36]
[1756861043765,4.89997912,208.48,208.47,38.36]
[1756861044650,4.20997912,208.48,208.47,38.36]
[1756861045440,4.20997912,208.48,208.47,43.15685326]
[1756861045964,0.06,208.48,208.47,43.15685326]
[1756861046954,0.06,208.48,208.47,122.85685326]
[1756861052057,0.06,208.48,208.47,118.06]
[1756861052263,0.06,208.48,208.47,122.85685326]
[1756861055168,0.06,208.48,208.47,123.27685326]
[1756861055357,0.06,208.48,208.47,127.42683238]
[1756861056678,0.06,208.48,208.47,127.40683238]
[1756861057182,0.06,208.51,208.48,79.69999999]
[1756861057370,0.06,208.51,208.5,4.14997912]
[1756861057886,0.06,208.51,208.5,4.56997912]
[1756861058585,0.06,208.51,208.5,9.36614218]
[1756861058788,0.06,208.51,208.48,84.49642688]
[1756861058992,0.75,208.51,208.48,84.49642688]
[1756861059294,0.69,208.5,208.49,38.34]
[1756861059885,0.69,208.5,208.48,84.49642688]
[1756861060088,4.20997912,208.51,208.48,84.49642688]
[1756861060089,0.06,208.51,208.49,38.34]
[1756861061099,0.06,208.51,208.5,4.14997912]
[1756861061262,0.06,208.51,208.5,4.56997912]
[1756861061673,0.06,208.51,208.5,84.26997911]
[1756861062076,0.06,208.51,208.5,84.49616305]
[1756861062365,0.06,208.51,208.5,89.06614217]
[1756861064091,1e-08,208.51,208.5,89.68792004]
[1756861064293,0.06,208.54,208.52,0.14216157]
[1756861064489,0.06,208.54,208.53,42.48997912]
[1756861065087,0.06,208.56,208.53,43.05214069]
[1756861065288,0.06,208.56,208.55,4.14997912]
[1756861065491,0.06,208.56,208.55,42.48997912]
[1756861066000,1e-08,208.56,208.55,4.99646383]
[1756861066288,1e-08,208.56,208.55,48.11147701]
[1756861067280,1e-08,208.56,208.55,47.40715387]
[1756861068969,1e-08,208.56,208.55,47.82715387]
[1756861069694,1e-08,208.57,208.56,0.14216157]
[1756861069873,1e-08,208.57,208.56,4.29214069]
[1756861070490,1e-08,208.57,208.56,0.14216157]
[1756861070687,1e-08,208.57,208.56,4.57646383]
[1756861070888,1e-08,208.57,208.56,9.7912471]
[1756861071697,1e-08,208.57,208.56,11.71187706]
[1756861073984,1e-08,208.6,208.56,28.32829268]
[1756861074194,0.68,208.65,208.62,79.63999997]
[1756861074394,0.68,208.64,208.63,38.32]
[1756861074987,0.68,208.64,208.63,43.11317451]
[1756861075297,4.82997912,208.64,208.62,79.63999997]
[1756861075494,0.68,208.63,208.62,117.95999997]
[1756861076202,0.68,208.63,208.62,122.75340424]
[1756861076572,26.0,208.66,208.62,122.75340424]
[1756861076897,0.68,208.65,208.62,126.90338336]
[1756861077074,0.68,208.65,208.63,4.14997912]
[1756861077275,4.34997912,208.69,208.64,38.3]
[1756861077276,0.2,208.69,208.64,38.3]
[1756861077483,0.68,208.68,208.65,4.14997912]
[1756861077709,0.2,208.69,208.64,38.3]
[1756861077710,0.68,208.67,208.66,38.3]
[1756861078999,0.68,208.67,208.66,43.09248538]
[1756861079403,0.68,208.67,208.66,38.3]
[1756861080112,0.68,208.67,208.66,43.09248538]
[1756861081088,0.68,208.67,208.66,38.3]
[1756861081791,0.68,208.67,208.66,43.09248538]
[1756861082408,0.68,208.67,208.66,122.73248535]
[1756861083892,0.68,208.67,208.66,117.93999997]
[1756861084189,0.68,208.67,208.66,122.73248535]
[1756861084598,0.2,208.69,208.66,126.88246447]
[1756861084995,0.88,208.69,208.66,126.88246447]
[1756861086214,0.68,208.68,208.66,126.88246447]
[1756861086716,0.68,208.68,208.66,122.73248535]
[1756861087418,0.68,208.68,208.66,126.88246447]
[1756861088718,0.2,208.69,208.66,126.88246447]
[1756861088896,0.88,208.69,208.66,126.88246447]
[1756861089307,0.2,208.69,208.66,126.88246447]
[1756861091509,0.2,208.69,208.67,4.14997912]
[1756861091820,0.2,208.69,208.68,38.28]
[1756861093099,0.2,208.69,208.68,47.22200518]
[1756861093308,0.2,208.69,208.68,126.86200515]
[1756861094013,1e-08,208.69,208.68,127.70848986]
[1756861097296,0.06,208.73,208.7,4.79156684]
[1756861097496,0.06,208.73,208.72,4.14997912]
[1756861097804,0.06,208.73,208.72,83.78997908]
[1756861098414,0.06,208.73,208.72,88.58108678]
[1756861099506,0.06,208.73,208.72,87.07824218]
[1756861100330,0.06,208.73,208.72,87.92472689]
[1756861100707,1e-08,208.73,208.72,88.40383766]
[1756861100907,1e-08,208.73,208.72,87.50472689]
[1756861101130,1e-08,208.73,208.72,125.76472689]
[1756861102617,1e-08,208.73,208.72,125.33824218]
[1756861103216,0.69,208.75,208.73,79.63999995]
[1756861103415,0.69,208.75,208.74,38.26]
[1756861103610,0.06,208.76,208.74,38.26]
[1756861103828,0.75,208.76,208.74,40.90713452]
[1756861104239,0.06,208.76,208.74,40.90713452]
[1756861104429,0.69,208.75,208.74,40.90713452]
[1756861104624,0.69,208.75,208.74,38.26]
[1756861104825,0.69,208.75,208.74,43.05064865]
[1756861106221,0.69,208.75,208.74,38.26]
[1756861107834,29.33713452,208.75,208.71,79.63999995]
[1756861108032,2.64713452,208.72,208.71,79.63999995]
[1756861108208,3.33713452,208.72,208.71,117.89999995]
[1756861108522,3.33713452,208.72,208.71,38.26]
[1756861110333,29.62145766,208.72,208.62,3.83796464]
[1756861110507,2.64713452,208.65,208.63,38.24]
[1756861110714,0.69,208.64,208.63,38.24]
[1756861111038,0.69,208.64,208.63,43.03317451]
[1756861111812,0.69,208.68,208.63,43.03317451]
[1756861112036,2.64713452,208.69,208.63,43.03317451]
[1756861112428,3.33713452,208.68,208.63,43.03317451]
[1756861112633,3.33713452,208.67,208.63,43.03317451]
[1756861112933,0.69,208.66,208.63,43.03317451]
[1756861114149,0.69,208.65,208.63,43.03317451]
[1756861114324,0.69,208.64,208.63,4.79317451]
[1756861114521,3.33713452,208.64,208.62,0.03]
[1756861114719,2.64713452,208.63,208.62,0.03]
[1756861115143,3.33713452,208.63,208.62,0.03]
[1756861116448,29.33713452,208.63,208.62,0.03]
[1756861117254,3.33713452,208.63,208.62,0.03]
[1756861118662,0.69,208.63,208.62,0.03]
[1756861118869,3.33713452,208.63,208.62,0.03]
[1756861122069,2.64713452,208.63,208.62,0.03]
[1756861122362,0.67,208.63,208.62,117.92999995]
[1756861122938,0.67,208.63,208.62,122.72340422]
[1756861123345,0.67,208.63,208.62,79.66999995]
[1756861123545,3.31713452,208.63,208.62,79.66999995]
[1756861124536,3.31713452,208.63,208.62,0.03]
[1756861124737,0.67,208.63,208.62,0.03]
[1756861125076,3.31713452,208.63,208.62,0.03]
[1756861136373,29.31713452,208.63,208.62,0.03]
[1756861136555,3.31713452,208.63,208.59,0.03]
[1756861136754,2.64713452,208.6,208.59,0.03]
[1756861137461,2.64713452,208.61,208.59,0.03]
[1756861138173,0.67,208.6,208.59,0.03]
[1756861138389,3.31713452,208.6,208.59,0.03]
[1756861142978,8.11099837,208.6,208.59,0.03]
[1756861143161,8.53748308,208.6,208.59,0.03]
[1756861143651,10.45912801,208.6,208.59,0.03]
[1756861144179,26.0,208.58,208.57,0.03]
[1756861144480,3.07361923,208.58,208.57,0.03]
[1756861144668,8.53794275,208.58,208.57,0.03]
[1756861145681,10.45977234,208.58,208.57,0.03]
[1756861146352,48.69977234,208.58,208.57,0.03]
[1756861146552,0.67,208.58,208.57,0.03]
[1756861146772,3.31713452,208.58,208.57,0.03]
[1756861147286,34.11145804,208.58,208.57,0.03]
[1756861149590,34.53794275,208.58,208.57,0.03]
[1756861150088,36.45977234,208.58,208.57,0.03]
[1756861150871,67.55713452,208.58,208.57,0.03]
[1756861151278,28.64713452,208.58,208.57,0.03]
[1756861151587,26.0,208.58,208.57,0.03]
[1756861151777,28.64713452,208.58,208.57,0.03]
[1756861152863,29.35713452,208.58,208.57,0.03]
[1756861153188,3.35713452,208.58,208.57,0.03]
[1756861153386,8.15145804,208.58,208.57,0.03]
[1756861154679,8.57794275,208.58,208.57,0.03]
[1756861155388,46.81794275,208.58,208.57,0.03]
[1756861155988,57.40648083,208.58,208.57,0.03]
[1756861156972,1.13648471,208.58,208.57,0.03]
[1756861157175,3.35713452,208.58,208.57,0.03]
[1756861157570,8.15145804,208.58,208.57,0.03]
[1756861157772,8.29361961,208.58,208.57,0.03]
[1756861158082,8.57794275,208.58,208.57,0.03]
[1756861159417,19.16648083,208.58,208.57,0.03]
[1756861159703,14.22643469,208.58,208.57,0.03]
[1756861160170,26.0,208.56,208.55,0.03]
[1756861160375,68.5099748,208.56,208.55,0.03]
[1756861160575,68.79429794,208.56,208.55,0.03]
[1756861160774,33.20631221,208.56,208.55,0.03]
[1756861161408,42.14890871,208.56,208.55,0.03]
[1756861161604,38.00109548,208.56,208.55,0.03]
[1756861164800,42.14890871,208.56,208.55,0.03]
[1756861168614,38.00109548,208.56,208.55,0.03]
[1756861169191,42.14890871,208.56,208.55,0.03]
[1756861170609,6.21198907,208.56,208.55,0.03]
[1756861170913,4.14781323,208.56,208.55,0.03]
[1756861171093,30.14781323,208.56,208.55,0.03]
[1756861171404,35.6525965,208.56,208.55,0.03]
[1756861171908,73.8725965,208.56,208.55,0.03]
[1756861172707,78.44689444,208.56,208.55,0.03]
[1756861173015,80.36900107,208.56,208.55,0.03]
[1756861173519,76.22118784,208.56,208.55,0.03]
[1756861173692,74.29908121,208.56,208.55,0.03]
[1756861175304,76.22109548,208.56,208.55,0.03]
[1756861175993,32.0698275,208.56,208.55,0.03]
[1756861176195,32.0698275,208.56,208.55,0.45]
[1756861176196,1.92201427,208.56,208.55,0.45]
[1756861176817,0.06,208.59,208.55,4.59781323]
[1756861177014,26.0,208.58,208.55,4.17781323]
[1756861177316,26.0,208.58,208.56,0.42]
[1756861177704,0.06,208.59,208.56,5.21469414]
[1756861177908,0.06,208.59,208.57,0.42]
[1756861178208,26.06,208.59,208.58,0.42]
[1756861178517,26.0,208.58,208.55,5.24498052]
[1756861178817,26.0,208.58,208.56,0.42]
[1756861179210,26.0,208.58,208.55,4.82498052]
[1756861179211,30.14781323,208.58,208.55,0.03]
[1756861179890,26.0,208.57,208.55,0.03]
[1756861180110,30.14781323,208.57,208.55,0.03]
[1756861181028,30.14781323,208.57,208.55,0.45]
[1756861181898,30.14781323,208.57,208.55,0.03]
[1756861183120,26.0,208.58,208.55,0.03]
[1756861183323,30.14781323,208.58,208.55,0.03]
[1756861183512,26.0,208.58,208.55,0.03]
[1756861183699,4.14781323,208.58,208.55,0.03]
[1756861184121,0.06,208.59,208.56,4.56781323]
[1756861184321,0.06,208.59,208.57,0.42]
[1756861184524,0.06,208.59,208.55,80.08999995]
[1756861184820,0.06,208.59,208.56,0.42]
[1756861185120,0.06,208.59,208.55,83.81781318]
[1756861185320,0.06,208.59,208.58,4.14781323]
[1756861185715,0.06,208.59,208.58,9.36213675]
[1756861186119,0.06,208.59,208.58,5.21432352]
[1756861186631,0.06,208.59,208.58,9.36213675]
[1756861187325,0.06,208.59,208.58,5.21432352]
[1756861187505,0.06,208.59,208.58,9.36213675]
[1756861187809,0.06,208.59,208.58,102.59773071]
[1756861189631,0.06,208.62,208.58,102.59773071]
[1756861189632,0.06,208.64,208.6,13.59559401]
[1756861189808,0.06,208.64,208.63,17.74340724]
[1756861190315,0.06,208.64,208.63,18.16340724]
[1756861190640,0.06,208.64,208.63,42.74781323]
[1756861191435,0.06,208.64,208.63,47.54098774]
[1756861191919,0.06,208.64,208.63,61.13658175]
[1756861192731,0.06,208.64,208.63,140.77658169]
[1756861193723,0.06,208.64,208.63,140.35658169]
[1756861194814,0.06,208.64,208.63,136.20876846]
[1756861195015,0.06,208.64,208.63,140.35658169]
[1756861195214,0.06,208.64,208.63,140.77658169]
[1756861195720,0.06,208.64,208.63,140.35658169]
[1756861195926,0.06,208.64,208.63,140.77658169]
[1756861197712,0.06,208.64,208.63,140.75658169]
[1756861197914,0.06,208.64,208.63,140.33658169]
[1756861199044,0.06,208.64,208.63,102.17658169]
[1756861199250,0.06,208.64,208.63,140.31658169]
[1756861200519,0.06,208.64,208.63,126.72098768]
[1756861200720,0.06,208.64,208.63,140.31658169]
[1756861202026,0.06,208.64,208.63,136.16876846]
[1756861202249,0.78,208.64,208.6,88.58147259]
[1756861202454,0.06,208.64,208.63,4.14781323]
[1756861202657,0.06,208.64,208.63,55.88340724]
[1756861203353,0.78,208.64,208.63,55.88340724]
[1756861203542,0.06,208.64,208.63,55.88340724]
[1756861204257,0.78,208.64,208.6,79.63999994]
[1756861204462,4.14781323,208.62,208.6,38.14]
[1756861204637,0.72,208.61,208.6,38.14]
[1756861206043,2.70109118,208.64,208.6,42.28781323]
[1756861206247,0.06,208.64,208.61,13.59559401]
[1756861206440,0.06,208.64,208.63,4.14781323]
[1756861206641,0.78,208.64,208.62,38.14]
[1756861206838,0.06,208.64,208.62,42.28781323]
[1756861207143,0.06,208.64,208.63,4.14781323]
[1756861207536,0.06,208.64,208.63,22.95658175]
[1756861208146,0.06,208.64,208.63,24.87684291]
[1756861208756,0.06,208.67,208.64,13.59559401]
[1756861208955,0.06,208.67,208.66,17.74340724]
[1756861209142,1e-08,208.67,208.66,101.67338198]
[1756861209559,1e-08,208.67,208.66,102.09338198]
[1756861209753,1e-08,208.67,208.66,106.88586736]
[1756861210343,0.06,208.69,208.68,39.59559401]
[1756861210344,1e-08,208.69,208.68,39.59559401]
[1756861210550,0.06,208.76,208.7,0.14216157]
[1756861210756,0.06,208.76,208.72,17.74340724]
[1756861211059,0.06,208.76,208.72,55.86340724]
[1756861211260,0.06,208.76,208.72,15.51502586]
[1756861211467,0.75,208.73,208.72,6.06724508]
[1756861211643,0.75,208.73,208.72,48.97835278]
[1756861211961,0.06,208.73,208.72,47.05892093]
[1756861212363,0.75,208.73,208.72,47.05892093]
[1756861213145,0.06,208.73,208.72,47.05892093]
[1756861213666,0.06,208.73,208.72,60.65451494]
[1756861214746,0.06,208.73,208.72,62.57394679]
[1756861215062,0.06,208.73,208.72,60.65451494]
[1756861215363,0.06,208.73,208.72,60.63451494]
[1756861215558,0.06,208.73,208.72,140.27451488]
[1756861218451,0.75,208.73,208.72,79.63999994]
[1756861218654,0.75,208.73,208.67,79.63999994]
[1756861218842,0.69,208.72,208.68,38.1]
[1756861219041,0.69,208.71,208.69,38.1]
[1756861219257,0.69,208.7,208.69,38.1]
[1756861220870,0.69,208.7,208.69,38.13]
[1756861221066,0.69,208.72,208.69,45.57055841]
[1756861221270,0.06,208.73,208.69,45.57055841]
[1756861221446,0.69,208.71,208.69,45.57055841]
[1756861221758,0.69,208.7,208.69,38.13]
[1756861221947,0.69,208.7,208.69,42.92179644]
[1756861222348,0.69,208.7,208.69,0.03]
[1756861222548,0.69,208.7,208.69,38.13]
[1756861222971,0.69,208.7,208.69,0.03]
[1756861223171,0.69,208.7,208.69,38.13]
[1756861223571,0.69,208.7,208.69,0.03]
[1756861223774,29.33876197,208.7,208.69,0.03]
[1756861223961,29.33876197,208.7,208.66,0.03]
[1756861223962,26.0,208.67,208.66,0.03]
[1756861224273,28.64876197,208.67,208.66,0.03]
[1756861224477,28.64876197,208.67,208.64,38.13]
[1756861224478,29.33876197,208.67,208.64,0.03]
[1756861224661,2.64876197,208.65,208.64,0.03]
[1756861225061,3.33876197,208.65,208.64,0.03]
[1756861225673,17.74625386,208.65,208.64,0.03]
[1756861225858,22.53896893,208.65,208.64,0.03]
[1756861226684,17.74625386,208.65,208.64,0.03]
[1756861227690,22.53896893,208.65,208.64,0.03]
[1756861228090,17.74625386,208.65,208.64,0.03]
[1756861228587,22.53896893,208.65,208.64,0.03]
[1756861229070,17.74625386,208.65,208.64,0.03]
[1756861229776,15.09749189,208.65,208.64,0.03]
[1756861229976,17.74625386,208.65,208.64,0.03]
[1756861230278,22.53896893,208.65,208.64,0.03]
[1756861230487,17.74625386,208.65,208.64,0.03]
[1756861232598,22.53896893,208.65,208.64,0.03]
[1756861233498,22.82329207,208.65,208.64,0.03]
[1756861234774,18.030577,208.65,208.64,0.03]
[1756861234975,3.62308511,208.65,208.64,0.03]
[1756861235170,29.62308511,208.65,208.64,0.03]
[1756861235784,34.41580018,208.65,208.64,0.03]
[1756861238305,34.55796175,208.65,208.64,0.03]
[1756861238481,34.55796175,208.65,208.64,1e-08]
[1756861238686,48.15355576,208.65,208.64,1e-08]
[1756861238908,26.0,208.62,208.61,0.03]
[1756861239202,66.72876197,208.62,208.61,0.03]
[1756861239408,67.41876197,208.62,208.61,0.03]
[1756861240484,72.21216624,208.62,208.61,0.03]
[1756861242284,26.0,208.57,208.54,37.75]
[1756861243184,28.64876197,208.57,208.54,37.75]
[1756861243887,28.64876197,208.57,208.52,5.30568696]
[1756861244282,2.64876197,208.57,208.52,5.30568696]
[1756861244484,2.64876197,208.57,208.52,4.82568696]
[1756861244706,2.64876197,208.57,208.52,5.30568696]
[1756861245006,2.64876197,208.55,208.52,0.03]
[1756861245222,2.64876197,208.54,208.52,0.03]
[1756861245726,2.64876197,208.53,208.52,0.03]
[1756861246014,3.33876197,208.53,208.52,0.03]
[1756861246223,8.13423504,208.53,208.52,0.03]
[1756861248519,46.64071975,208.53,208.52,0.03]
[1756861248996,60.23631376,208.53,208.52,1e-08]
[1756861249682,74.65696414,208.53,208.52,1e-08]
[1756861250513,26.42648471,208.51,208.5,35.78542919]
[1756861250716,29.07524668,208.51,208.5,35.78542919]
[1756861250898,29.76524668,208.51,208.5,35.78542919]
[1756861251488,26.42648471,208.51,208.5,35.78542919]
[1756861251702,67.70308511,208.51,208.5,35.78542919]
[1756861252285,29.62308511,208.51,208.5,35.78542919]
[1756861252494,2.64876197,208.51,208.5,35.78542919]
[1756861252699,28.64876197,208.51,208.5,35.78542919]
[1756861253506,2.64876197,208.51,208.5,35.78542919]
[1756861253913,68.87553378,208.53,208.5,35.78542919]
[1756861254093,2.64876197,208.51,208.5,35.78542919]
[1756861254601,2.64876197,208.52,208.5,35.78542919]
[1756861255818,4.79462224,208.57,208.5,35.78542919]
[1756861256109,26.0,208.53,208.5,35.78542919]
[1756861256315,28.64876197,208.53,208.5,35.78542919]
[1756861256706,26.0,208.53,208.5,35.78542919]
[1756861257012,2.70876197,208.54,208.5,35.78542919]
[1756861257318,26.0,208.53,208.5,35.78542919]
[1756861259612,28.64876197,208.51,208.5,35.78542919]
[1756861260613,5.48585385,208.52,208.5,35.78542919]
[1756861260836,26.0,208.53,208.5,36.26542919]
[1756861260997,26.06,208.54,208.51,0.48]
[1756861261593,0.06,208.54,208.51,0.48]
[1756861262011,26.0,208.53,208.51,0.48]
[1756861262318,0.06,208.54,208.52,0.48]
[1756861262520,0.06,208.54,208.5,122.87029894]
[1756861262717,0.06,208.54,208.52,0.48]
[1756861263105,0.06,208.54,208.5,118.5541911]
[1756861263401,0.06,208.54,208.51,0.48]
[1756861264631,0.06,208.54,208.5,122.8703447]
[1756861264803,0.06,208.54,208.52,0.48]
[1756861265008,0.42648471,208.52,208.5,35.78542919]
[1756861265216,3.62308511,208.51,208.5,35.78542919]
[1756861265654,29.62308511,208.51,208.5,35.78542919]
[1756861266238,26.0,208.51,208.5,35.78542919]
[1756861266428,26.0,208.51,208.5,74.32542919]
[1756861267147,26.0,208.51,208.5,36.26542919]
[1756861267558,26.0,208.51,208.5,74.32542919]